fUST/lending_fUST_20250213
["ID","MTS","AMOUNT","RATE_DAILY","PERIOD"]
[352859837,1739377855149,-500.0,0.00013699,2]
[352859838,1739377855159,-500.0,0.00013699,2]
[352859839,1739377855168,-157.65798741,0.00013699,2]
[352859840,1739377855178,-749.54735871,0.000137,2]
[352859841,1739377855188,-749.54735871,0.000137,2]
[352859842,1739377855197,-749.54735871,0.000137,2]
[352859843,1739377855207,-749.54735871,0.000137,2]
[352859844,1739377855217,-749.54735871,0.000137,2]
[352859845,1739377855226,-749.54735871,0.000137,2]
[352859846,1739377855236,-749.54735871,0.000137,2]
[352859847,1739377855245,-749.54735871,0.000137,2]
[352859848,1739377855254,-749.54735871,0.000137,2]
[352859849,1739377855264,-749.54735871,0.000137,2]
[352859850,1739377855273,-749.54735871,0.000137,2]
[352859851,1739377855283,-749.54735871,0.000137,2]
[352859852,1739377855292,-749.54735871,0.000137,2]
[352859853,1739377855302,-749.54735871,0.000137,2]
[352859854,1739377855312,-749.54735871,0.000137,2]
[352859855,1739377855322,-749.54735871,0.000137,2]
[352859856,1739377855332,-749.54735871,0.000137,2]
[352859857,1739377855342,-749.54735871,0.000137,2]
[352859858,1739377855352,-749.54735871,0.000137,2]
[352859859,1739377855362,-749.54,0.000137,2]
[352859860,1739377855371,-900.64430084,0.000137,2]
[352859861,1739377855381,-900.64430084,0.000137,2]
[352859862,1739377855390,-900.64430084,0.000137,2]
[352859863,1739377855400,-900.64430084,0.000137,2]
[352859864,1739377855409,-900.64430084,0.000137,2]
[352859865,1739377855419,-900.64430084,0.000137,2]
[352859866,1739377855428,-900.64430084,0.000137,2]
[352859867,1739377855439,-900.64430084,0.000137,2]
[352859868,1739377855448,-900.64430084,0.000137,2]
[352859869,1739377855458,-900.64430084,0.000137,2]
[352859870,1739377855467,-900.64430084,0.000137,2]
[352859871,1739377855477,-900.64430084,0.000137,2]
[352859872,1739377855487,-900.64430084,0.000137,2]
[352859873,1739377855496,-900.64430084,0.000137,2]
[352859874,1739377855506,-900.64430084,0.000137,2]
[352859875,1739377855515,-900.64430084,0.000137,2]
[352859876,1739377855524,-900.64430084,0.000137,2]
[352859877,1739377855534,-900.64430084,0.000137,2]
[352859878,1739377855644,-900.64430084,0.000137,2]
[352859879,1739377855656,-900.64,0.000137,2]
[352859880,1739377855665,-151.0,0.00013833,2]
[352859881,1739377855675,-151.0,0.00013833,2]
[352859882,1739377855686,-151.0,0.00013833,2]
[352859883,1739377855695,-500.0,0.00013835,2]
[352859884,1739377855705,-500.0,0.00013835,2]
[352859885,1739377855714,-635.77,0.00013835,2]
[352859886,1739377855723,-500.0,0.00013835,2]
[352859887,1739377855732,-2066.17,0.00013835,2]
[352859888,1739377855741,-646.67,0.00013835,2]
[352859889,1739377855750,-2279.74,0.00013835,2]
[352859890,1739377855760,-1191.76,0.00013835,2]
[352859891,1739377855769,-4668.81,0.00013835,2]
[352859892,1739377855778,-516.29,0.00013835,2]
[352859893,1739377855792,-963.2,0.00013835,2]
[352859894,1739377855801,-500.0,0.00013864,2]
[352859895,1739377855810,-7438.69753278,0.0001391,2]
[352859896,1739377855819,-150.9,0.00013972,2]
[352859897,1739377855828,-500.0,0.00013972,2]
[352859898,1739377855838,-632.76,0.00013972,2]
[352859899,1739377855847,-2066.17,0.00013972,2]
[352859900,1739377855856,-646.67,0.00013972,2]
[352859901,1739377855865,-2279.74,0.00013972,2]
[352859902,1739377855875,-1191.76,0.00013972,2]
[352859903,1739377855885,-4668.81,0.00013972,2]
[352859904,1739377855895,-516.29,0.00013972,2]
[352859905,1739377855904,-963.2,0.00013972,2]
[352859906,1739377855913,-400.8,0.00014109,2]
[352859907,1739377855923,-2066.32855971,0.00014109,2]
[352859908,1739377855933,-646.85,0.00014109,2]
[352859909,1739377855943,-2279.82,0.00014109,2]
[352859910,1739377855952,-1191.77318764,0.00014109,2]
[352859911,1739377855962,-4668.9552157,0.00014109,2]
[352859912,1739377855972,-516.33,0.00014109,2]
[352859913,1739377855981,-963.32558051,0.00014109,2]
[352859914,1739377855991,-151.0,0.00014109,2]
[352859915,1739377856000,-500.0,0.00014247,2]
[352859916,1739377856009,-151.0,0.000149,2]
[352859917,1739377856019,-151.0,0.000149,2]
[352859918,1739377856028,-151.0,0.000149,2]
[352859919,1739377856042,-151.0,0.000149,2]
[352859920,1739377856051,-151.0,0.000149,2]
[352859921,1739377856060,-509.89253268,0.000149,2]
[352859922,1739377856070,-151.0,0.000149,2]
[352859923,1739377856079,-151.0,0.000149,2]
[352859924,1739377856089,-151.0,0.000149,2]
[352859925,1739377856098,-1748.94383698,0.000149,2]
[352859926,1739377856108,-1748.94383698,0.000149,2]
[352859927,1739377856117,-1748.94383698,0.000149,2]
[352859928,1739377856128,-1748.94383698,0.000149,2]
[352859929,1739377856138,-1748.94383698,0.000149,2]
[352859930,1739377856148,-1748.94383698,0.000149,2]
[352859931,1739377856158,-1748.94383698,0.000149,2]
[352859932,1739377856168,-1748.94383698,0.000149,2]
[352859933,1739377856178,-1748.94383698,0.000149,2]
[352859934,1739377856188,-1748.94383698,0.000149,2]
[352859935,1739377856198,-1748.94383698,0.000149,2]
[352859936,1739377856208,-1748.94383698,0.000149,2]
[352859937,1739377856218,-1748.94383698,0.000149,2]
[352859938,1739377856227,-1748.94383698,0.000149,2]
[352859939,1739377856238,-1748.94383698,0.000149,2]
[352859940,1739377856247,-1748.94383698,0.000149,2]
[352859941,1739377856257,-1748.94383698,0.000149,2]
[352859942,1739377856266,-1748.94383698,0.000149,2]
[352859943,1739377856275,-1748.94383698,0.000149,2]
[352859944,1739377856289,-1748.94,0.000149,2]
[352859945,1739377856298,-2101.50336863,0.000149,2]
[352859946,1739377856308,-2101.50336863,0.000149,2]
[352859947,1739377856318,-2101.50336863,0.000149,2]
[352859948,1739377856327,-2101.50336863,0.000149,2]
[352859949,1739377856337,-2101.50336863,0.000149,2]
[352859950,1739377856346,-2101.50336863,0.000149,2]
[352859951,1739377856355,-2101.50336863,0.000149,2]
[352859952,1739377856364,-2101.50336863,0.000149,2]
[352859953,1739377856374,-2101.50336863,0.000149,2]
[352859954,1739377856383,-2101.50336863,0.000149,2]
[352859955,1739377856393,-2101.50336863,0.000149,2]
[352859956,1739377856404,-2101.50336863,0.000149,2]
[352859957,1739377856413,-2101.50336863,0.000149,2]
[352859958,1739377856422,-2101.50336863,0.000149,2]
[352859959,1739377856431,-2101.50336863,0.000149,2]
[352859960,1739377856440,-2101.50336863,0.000149,2]
[352859961,1739377856449,-2101.50336863,0.000149,2]
[352859962,1739377856459,-2101.50336863,0.000149,2]
[352859963,1739377856468,-2101.50336863,0.000149,2]
[352859964,1739377856478,-2101.5,0.000149,2]
[352859965,1739377856490,-168.41666136,0.00014904,2]
[352859966,1739377856500,-496.0,0.0001491,2]
[352859967,1739377856510,-20971.01999298,0.00015,5]
[352859968,1739377856520,-168.16261571,0.00015,5]
[352859969,1739377856530,-177743.13343459,0.00015,2]
[352859970,1739377856542,-3402.05159631,0.00015,2]
[352859971,1739377856551,-12717.18960338,0.00015,2]
[352859972,1739377856560,-255084.30718998,0.00015,2]
[352859973,1739377856569,-2276.18,0.00015,2]
[352859974,1739377856579,-1415095.89661881,0.00015,2]
[352859975,1739377856588,-409.0,0.00015,5]
[352859976,1739377856598,-189.0,0.00015,2]
[352859977,1739377856611,-151.0,0.00015,2]
[352859978,1739377856622,-151.0,0.00015,2]
[352859979,1739377856632,-151.0,0.00015,2]
[352859980,1739377856641,-151.0,0.00015,2]
[352859981,1739377856651,-151.0,0.00015,2]
[352859982,1739377856660,-151.0,0.00015,2]
[352859983,1739377856670,-151.0,0.00015,2]
[352859984,1739377856681,-151.0,0.00015,2]
[352859985,1739377856692,-151.0,0.00015,2]
[352859986,1739377856702,-151.0,0.00015,2]
[352859987,1739377856712,-151.938607,0.00015,2]
[352859988,1739377856721,-151.0,0.00015,2]
[352859989,1739377856730,-151.0,0.00015,2]
[352859990,1739377856739,-151.0,0.00015,2]
[352859991,1739377856749,-151.0,0.00015,2]
[352859992,1739377856759,-151.0,0.00015,2]
[352859993,1739377856769,-293.221108,0.00015,2]
[352859994,1739377856778,-151.0,0.00015,2]
[352859995,1739377856790,-245.979153,0.00015,2]
[352859996,1739377856799,-245.979153,0.00015,2]
[352859997,1739377856808,-245.979153,0.00015,2]
[352859998,1739377856818,-245.979153,0.00015,2]
[352859999,1739377856827,-245.979153,0.00015,2]
[352860000,1739377856837,-245.979153,0.00015,2]
[352860001,1739377856847,-151.0,0.00015,2]
[352860002,1739377856857,-151.0,0.00015,2]
[352860003,1739377856867,-151.0,0.00015,2]
[352860004,1739377856876,-151.0,0.00015,2]
[352860005,1739377856886,-151.0,0.00015,2]
[352860006,1739377856895,-151.0,0.00015,2]
[352860007,1739377856904,-151.0,0.00015,2]
[352860008,1739377856914,-151.0,0.00015,2]
[352860009,1739377856923,-12169.0,0.00015,2]
[352860010,1739377856934,-151.0,0.00015,2]
[352860011,1739377856944,-151.0,0.00015,2]
[352860012,1739377856955,-251.089958,0.00015,2]
[352860013,1739377856966,-151.0,0.00015,2]
[352860014,1739377856976,-151.0,0.00015,2]
[352860015,1739377856986,-151.0,0.00015,2]
[352860016,1739377856995,-151.0,0.00015,2]
[352860017,1739377857005,-151.0,0.00015,2]
[352860018,1739377857014,-151.0,0.00015,2]
[352860019,1739377857023,-151.0,0.00015,2]
[352860020,1739377857032,-151.0,0.00015,2]
[352860021,1739377857042,-151.0,0.00015,2]
[352860022,1739377857051,-199.013992,0.00015,2]
[352860023,1739377857061,-151.0,0.00015,2]
[352860024,1739377857071,-151.0,0.00015,2]
[352860025,1739377857080,-151.0,0.00015,2]
[352860026,1739377857090,-151.0,0.00015,2]
[352860027,1739377857099,-157.894122,0.00015,2]
[352860028,1739377857112,-151.0,0.00015,2]
[352860029,1739377857122,-151.0,0.00015,2]
[352860030,1739377857131,-151.0,0.00015,2]
[352860031,1739377857141,-166.0,0.00015068,2]
[352860032,1739377857151,-509.89253263,0.00015138,2]
[352860033,1739377857161,-600.0,0.00015261,2]
[352860034,1739377857170,-151.0,0.00015324,2]
[352860035,1739377857180,-509.89253263,0.00015376,2]
[352860036,1739377857189,-600.0,0.0001542,2]
[352860037,1739377857199,-1023.52806974,0.00015579,2]
[352860038,1739377857209,-509.89253263,0.00015613,2]
[352860039,1739377857219,-160.0,0.00015727,3]
[352860040,1739377857228,-500.0,0.0001577,2]
[352860041,1739377857237,-150.24,0.00015786,2]
[352860042,1739377857247,-500.0,0.00015786,2]
[352860043,1739377857256,-500.0,0.00015786,2]
[352860044,1739377857265,-150.24,0.00015786,2]
[352860045,1739377857274,-500.0,0.00015786,2]
[352860046,1739377857288,-500.0,0.00015786,2]
[352860047,1739377857298,-150.24,0.00015786,2]
[352860048,1739377857308,-683.0,0.00015786,2]
[352860049,1739377857319,-150.24,0.00015786,2]
[352860050,1739377857328,-150.24,0.00015786,2]
[352860051,1739377857338,-500.0,0.00015786,2]
[352860052,1739377857348,-150.24,0.00015786,2]
[352860053,1739377857358,-500.0,0.00015786,2]
[352860054,1739377857368,-150.24,0.00015786,2]
[352860055,1739377857378,-250.0,0.00015811,2]
[352860056,1739377857389,-500.0,0.0001582,2]
[352860057,1739377857399,-160.0,0.00015846,4]
[352860058,1739377857408,-509.89253263,0.00015851,2]
[352860059,1739377857418,-255.5,0.0001586,2]
[352860060,1739377857427,-500.0,0.0001587,2]
[352860061,1739377857437,-57121.04966701,0.00015897,2]
[352860062,1739377857447,-937799.20582447,0.000159,7]
[352860063,1739377857457,-151.0,0.000159,2]
[352860064,1739377857467,-151.0,0.000159,2]
[352860065,1739377857476,-245.979153,0.000159,2]
[352860066,1739377857486,-245.979153,0.000159,2]
[352860067,1739377857496,-151.0,0.000159,2]
[352860068,1739377857506,-151.0,0.000159,2]
[352860069,1739377857515,-151.0,0.000159,2]
[352860070,1739377857525,-151.0,0.000159,2]
[352860071,1739377857536,-160.0,0.00015964,5]
[352860072,1739377857546,-500.0,0.0001597,2]
[352860073,1739377857556,-5000.0,0.00016,30]
[352860074,1739377857565,-760.73296556,0.00016,30]
[352860075,1739377857574,-189.25,0.00016,2]
[352860076,1739377857584,-600.0,0.00016,3]
[352860077,1739377857594,-3000.0,0.00016,2]
[352860078,1739377857609,-3000.0,0.0001601,2]
[352860079,1739377857619,-3000.0,0.0001602,2]
[352860080,1739377857630,-3000.0,0.0001603,2]
[352860081,1739377857640,-3000.0,0.0001604,2]
[352860082,1739377857650,-3000.0,0.0001605,2]
[352860083,1739377857663,-150.24,0.0001606,2]
[352860084,1739377857672,-500.0,0.0001606,2]
[352860085,1739377857681,-500.0,0.0001606,2]
[352860086,1739377857691,-150.24,0.0001606,2]
[352860087,1739377857700,-500.0,0.0001606,2]
[352860088,1739377857709,-688.34799378,0.0001606,2]
[352860089,1739377857719,-683.0,0.0001606,2]
[352860090,1739377857728,-150.24,0.0001606,2]
[352860091,1739377857739,-500.0,0.0001606,2]
[352860092,1739377857749,-500.0,0.0001606,2]
[352860093,1739377857759,-150.24,0.0001606,2]
[352860094,1739377857769,-3000.0,0.0001606,2]
[352860095,1739377857778,-3000.0,0.0001607,2]
[352860096,1739377857792,-500.0,0.0001607,2]
[352860097,1739377857802,-3000.0,0.0001608,2]
[352860098,1739377857812,-160.0,0.00016083,6]
[352860099,1739377857821,-509.89253263,0.00016089,2]
[352860100,1739377857832,-3000.0,0.0001609,2]
[352860101,1739377857842,-3000.0,0.000161,2]
[352860102,1739377857852,-3000.0,0.0001611,2]
[352860103,1739377857862,-3000.0,0.0001612,2]
[352860104,1739377857872,-3000.0,0.0001613,2]
[352860105,1739377857882,-3000.0,0.0001614,2]
[352860106,1739377857892,-3000.0,0.0001615,2]
[352860107,1739377857903,-3000.0,0.0001616,2]
[352860108,1739377857913,-604.14,0.00016164,2]
[352860109,1739377857923,-3000.0,0.0001617,2]
[352860110,1739377857933,-500.0,0.0001617,2]
[352860111,1739377857943,-3000.0,0.0001618,2]
[352860112,1739377857953,-3000.0,0.0001619,2]
[352860113,1739377857963,-1000.0,0.00016192,30]
[352860114,1739377857973,-3000.0,0.000162,2]
[352860115,1739377857983,-160.0,0.00016202,7]
[352860116,1739377857993,-3000.0,0.0001621,2]
[352860117,1739377858003,-1000.0,0.00016219,30]
[352860118,1739377858012,-1000.0,0.00016219,60]
[352860119,1739377858022,-3000.0,0.0001622,2]
[352860120,1739377858032,-3000.0,0.0001623,2]
[352860121,1739377858044,-2154.52708726,0.0001623,2]
[352860122,1739377858054,-3000.0,0.0001624,2]
[352860123,1739377858063,-1000.0,0.00016247,30]
[352860124,1739377858073,-1000.0,0.00016247,60]
[352860125,1739377858083,-3000.0,0.0001625,2]
[352860126,1739377858093,-3000.0,0.0001626,2]
[352860127,1739377858103,-3000.0,0.0001627,2]
[352860128,1739377858113,-500.0,0.0001627,2]
[352860129,1739377858123,-1000.0,0.00016274,30]
[352860130,1739377858133,-1000.0,0.00016274,60]
[352860131,1739377858143,-3000.0,0.0001628,2]
[352860132,1739377858156,-3000.0,0.0001629,2]
[352860133,1739377858165,-3000.0,0.000163,2]
[352860134,1739377858175,-1000.0,0.00016301,30]
[352860135,1739377858184,-1000.0,0.00016301,60]
[352860136,1739377858194,-3000.0,0.0001631,2]
[352860137,1739377858204,-3000.0,0.0001632,2]
[352860138,1739377858215,-160.0,0.0001632,8]
[352860139,1739377858225,-509.89253263,0.00016327,2]
[352860140,1739377858235,-306.0,0.00016329,2]
[352860141,1739377858244,-1000.0,0.00016329,30]
[352860142,1739377858254,-1000.0,0.00016329,60]
[352860143,1739377858264,-3000.0,0.0001633,2]
[352860144,1739377858274,-150.411196,0.00016334,2]
[352860145,1739377858288,-500.0,0.00016334,2]
[352860146,1739377858298,-861.7514007,0.00016334,2]
[352860147,1739377858308,-150.41441758,0.00016334,2]
[352860148,1739377858318,-835.93072504,0.00016334,2]
[352860149,1739377858328,-683.0,0.00016334,2]
[352860150,1739377858338,-257.87198319,0.00016334,2]
[352860151,1739377858348,-500.0,0.00016334,2]
[352860152,1739377858358,-942.85484155,0.00016334,2]
[352860153,1739377858369,-150.24,0.00016334,2]
[352860154,1739377858378,-3000.0,0.0001634,2]
[352860155,1739377858388,-2500.0,0.00016345,2]
[352860156,1739377858397,-2500.0,0.00016346,2]
[352860157,1739377858407,-600.44121308,0.00016349,2]
[352860158,1739377858417,-3000.0,0.0001635,2]
[352860159,1739377858426,-2500.0,0.0001635,2]
[352860160,1739377858435,-1000.0,0.00016356,30]
[352860161,1739377858445,-1000.0,0.00016356,60]
[352860162,1739377858455,-3000.0,0.0001636,2]
[352860163,1739377858464,-3000.0,0.0001637,2]
[352860164,1739377858474,-500.0,0.0001637,2]
[352860165,1739377858483,-3000.0,0.0001638,2]
[352860166,1739377858493,-1000.0,0.00016384,30]
[352860167,1739377858597,-1000.0,0.00016384,60]
[352860168,1739377858620,-3000.0,0.0001639,2]
[352860169,1739377858630,-3000.0,0.000164,2]
[352860170,1739377858640,-3000.0,0.0001641,2]
[352860171,1739377858651,-1000.0,0.00016411,30]
[352860172,1739377858661,-1000.0,0.00016411,60]
[352860173,1739377858671,-3000.0,0.0001642,2]
[352860174,1739377858680,-3000.0,0.0001643,2]
[352860175,1739377858690,-1000.0,0.00016438,30]
[352860176,1739377858699,-1000.0,0.00016438,60]
[352860177,1739377858710,-151.0,0.00016438,2]
[352860178,1739377858719,-151.0,0.00016438,2]
[352860179,1739377858729,-500.0,0.00016438,2]
[352860180,1739377858739,-245.979153,0.00016438,2]
[352860181,1739377858749,-245.979153,0.00016438,2]
[352860182,1739377858759,-151.0,0.00016438,2]
[352860183,1739377858768,-151.0,0.00016438,2]
[352860184,1739377858778,-188.0,0.00016438,2]
[352860185,1739377858790,-188.0,0.00016438,2]
[352860186,1739377858800,-188.0,0.00016438,2]
[352860187,1739377858809,-188.0,0.00016438,2]
[352860188,1739377858819,-188.0,0.00016438,2]
[352860189,1739377858829,-188.0,0.00016438,2]
[352860190,1739377858839,-188.0,0.00016438,2]
[352860191,1739377858849,-188.0,0.00016438,2]
[352860192,1739377858860,-188.0,0.00016438,2]
[352860193,1739377858869,-188.0,0.00016438,2]
[352860194,1739377858879,-153.03359446,0.00016438,2]
[352860195,1739377858888,-500.0,0.00016438,2]
[352860196,1739377858898,-500.0,0.00016438,2]
[352860197,1739377858907,-1500.0,0.00016438,7]
[352860198,1739377858916,-1500.0,0.00016438,7]
[352860199,1739377858928,-1500.0,0.00016438,7]
[352860200,1739377858937,-1500.0,0.00016438,7]
[352860201,1739377858946,-1500.0,0.00016438,7]
[352860202,1739377858956,-1500.0,0.00016438,7]
[352860203,1739377858965,-1500.0,0.00016438,7]
[352860204,1739377858975,-1500.0,0.00016438,7]
[352860205,1739377858984,-1500.0,0.00016438,7]
[352860206,1739377858993,-1500.0,0.00016438,7]
[352860207,1739377859002,-1500.0,0.00016438,7]
[352860208,1739377859013,-1500.0,0.00016438,7]
[352860209,1739377859023,-1500.0,0.00016438,7]
[352860210,1739377859032,-1500.0,0.00016438,7]
[352860211,1739377859044,-1500.0,0.00016438,7]
[352860212,1739377859053,-1500.0,0.00016438,7]
[352860213,1739377859062,-1500.0,0.00016438,7]
[352860214,1739377859072,-1500.0,0.00016438,7]
[352860215,1739377859081,-1500.0,0.00016438,7]
[352860216,1739377859090,-1500.0,0.00016438,7]
[352860217,1739377859100,-1500.0,0.00016438,7]
[352860218,1739377859109,-1500.0,0.00016438,7]
[352860219,1739377859119,-1500.0,0.00016438,7]
[352860220,1739377859128,-1500.0,0.00016438,7]
[352860221,1739377859137,-1500.0,0.00016438,7]
[352860222,1739377859147,-1500.0,0.00016438,7]
[352860223,1739377859157,-1500.0,0.00016438,7]
[352860224,1739377859166,-1500.0,0.00016438,7]
[352860225,1739377859176,-1500.0,0.00016438,7]
[352860226,1739377859185,-1500.0,0.00016438,7]
[352860227,1739377859195,-1500.0,0.00016438,7]
[352860228,1739377859205,-1500.0,0.00016438,7]
[352860229,1739377859215,-1500.0,0.00016438,7]
[352860230,1739377859224,-1500.0,0.00016438,7]
[352860231,1739377859233,-1500.0,0.00016438,7]
[352860232,1739377859242,-1500.0,0.00016438,7]
[352860233,1739377859252,-1500.0,0.00016438,7]
[352860234,1739377859261,-1500.0,0.00016438,7]
[352860235,1739377859271,-1500.0,0.00016438,7]
[352860236,1739377859280,-1500.0,0.00016438,7]
[352860237,1739377859291,-1500.0,0.00016438,7]
[352860238,1739377859301,-1500.0,0.00016438,7]
[352860239,1739377859311,-786.44602,0.00016438,7]
[352860240,1739377859321,-160.0,0.00016439,9]
[352860241,1739377859330,-5906.931282,0.0001644,2]
[352860242,1739377859340,-1000.0,0.00016466,30]
[352860243,1739377859350,-1000.0,0.00016466,60]
[352860244,1739377859360,-500.0,0.0001647,2]
[352860245,1739377859370,-1000.0,0.00016493,30]
[352860246,1739377859379,-1000.0,0.00016493,60]
[352860247,1739377859389,-409.0,0.000165,6]
[352860248,1739377859398,-3919.60621088,0.000165,7]
[352860249,1739377859407,-1000.0,0.00016521,30]
[352860250,1739377859417,-1000.0,0.00016521,60]
[352860251,1739377859427,-1000.0,0.00016548,30]
[352860252,1739377859437,-1000.0,0.00016548,60]
[352860253,1739377859448,-160.0,0.00016557,10]
[352860254,1739377859459,-509.89253263,0.00016564,2]
[352860255,1739377859470,-500.0,0.0001657,2]
[352860256,1739377859479,-1000.0,0.00016575,30]
[352860257,1739377859490,-1000.0,0.00016575,60]
[352860258,1739377859500,-226.38596852,0.00016597,3]
[352860259,1739377859510,-227.2049022,0.00016603,2]
[352860260,1739377859520,-1000.0,0.00016603,30]
[352860261,1739377859530,-1000.0,0.00016603,60]
[352860262,1739377859541,-500.0,0.00016608,2]
[352860263,1739377859551,-683.0,0.00016608,2]
[352860264,1739377859560,-500.0,0.00016608,2]
[352860265,1739377859571,-150.24,0.00016608,2]
[352860266,1739377859581,-1000.0,0.0001663,30]
[352860267,1739377859591,-1000.0,0.0001663,60]
[352860268,1739377859611,-1000.0,0.00016658,30]
[352860269,1739377859632,-1000.0,0.00016658,60]
[352860270,1739377859648,-500.0,0.0001667,2]
[352860271,1739377859658,-160.0,0.00016676,11]
[352860272,1739377859667,-1000.0,0.00016685,30]
[352860273,1739377859677,-1000.0,0.00016685,60]
[352860274,1739377859686,-1000.0,0.00016712,30]
[352860275,1739377859695,-1000.0,0.00016712,60]
[352860276,1739377859705,-22610.11109123,0.00016726,2]
[352860277,1739377859715,-51796.20310738,0.0001677,2]
[352860278,1739377859725,-500.0,0.0001677,2]
[352860279,1739377859734,-160.0,0.00016794,12]
[352860280,1739377859744,-2000.0,0.000168,2]
[352860281,1739377859753,-468.683208,0.000168,2]
[352860282,1739377859762,-5901.44473678,0.000168,2]
[352860283,1739377859772,-2000.0,0.000168,2]
[352860284,1739377859783,-509.89253263,0.00016802,2]
[352860285,1739377859794,-1295.84039705,0.00016847,8]
[352860286,1739377859804,-1333.43779076,0.0001685,2]
[352860287,1739377859814,-500.0,0.0001687,2]
[352860288,1739377859823,-799.24182895,0.00016882,2]
[352860289,1739377859833,-683.0,0.00016882,2]
[352860290,1739377859845,-500.0,0.00016882,2]
[352860291,1739377859859,-150.24,0.00016882,2]
[352860292,1739377859869,-5000.005,0.000169,5]
[352860293,1739377859879,-782926.96037613,0.000169,15]
[352860294,1739377859888,-151.0,0.000169,2]
[352860295,1739377859898,-151.0,0.000169,2]
[352860296,1739377859908,-245.979153,0.000169,2]
[352860297,1739377859918,-245.979153,0.000169,2]
[352860298,1739377859927,-151.0,0.000169,2]
[352860299,1739377859936,-500.0,0.00016904,5]
[352860300,1739377859946,-259.20178259,0.00016904,5]
[352860301,1739377859955,-500.0,0.00016904,5]
[352860302,1739377859964,-500.0,0.00016904,5]
[352860303,1739377859974,-500.0,0.00016904,5]
[352860304,1739377859983,-500.0,0.00016904,5]
[352860305,1739377859993,-500.0,0.00016904,5]
[352860306,1739377860003,-500.0,0.00016904,5]
[352860307,1739377860012,-500.0,0.00016904,5]
[352860308,1739377860023,-500.0,0.00016904,5]
[352860309,1739377860033,-266.0,0.00016904,5]
[352860310,1739377860044,-500.0,0.00016904,5]
[352860311,1739377860053,-500.0,0.00016904,5]
[352860312,1739377860063,-500.0,0.00016904,5]
[352860313,1739377860073,-500.0,0.00016904,5]
[352860314,1739377860083,-500.0,0.00016904,5]
[352860315,1739377860093,-500.0,0.00016904,5]
[352860316,1739377860103,-500.0,0.00016904,5]
[352860317,1739377860114,-500.0,0.00016904,5]
[352860318,1739377860124,-500.0,0.00016904,5]
[352860319,1739377860134,-482.31094307,0.00016904,5]
[352860320,1739377860144,-160.0,0.00016913,13]
[352860321,1739377860154,-169.52694022,0.00016913,5]
[352860322,1739377860165,-1000.0,0.00016916,30]
[352860323,1739377860175,-500.0,0.0001697,2]
[352860324,1739377860184,-500.0,0.00016986,3]
[352860325,1739377860194,-499.345227,0.0001699,2]
[352860326,1739377860204,-2000.0,0.00017,2]
[352860327,1739377860214,-1000.0,0.00017,2]
[352860328,1739377860224,-7458.74962007,0.00017,10]
[352860329,1739377860235,-24257.64785562,0.00017,2]
[352860330,1739377860244,-49620.11912092,0.00017,2]
[352860331,1739377860255,-70000.0,0.00017,2]
[352860332,1739377860265,-813.60625918,0.00017,2]
[352860333,1739377860276,-500.0,0.00017,2]
[352860334,1739377860286,-500.0,0.00017,2]
[352860335,1739377860306,-500.0,0.00017,2]
[352860336,1739377860316,-500.0,0.00017,2]